[Event "Titled Tuesday Blitz July 4 Late 2023"]
[White "Jaracz, Pawel"]
[Black "Hajiyev, Kanan"]
[WhiteFideId "1102222"]
[BlackFideId "13404148"]
[WhiteElo "2708"]
[BlackElo "2532"]
[Result "1-0"]
[Round "4"]
[TimeControl "180+2"]
[Date "2023.07.04"]
[WhiteClock "0:00:19"]
[BlackClock "0:00:00"]
[Board "46"]

1. d4 {[%clk 0:02:56]}  d5 {[%clk 0:02:51]} 2. c4 {[%clk 0:02:57]}  c6 {[%clk 0:02:50]} 3. Nc3 {[%clk 0:02:54]}  Nf6 {[%clk 0:02:50]} 4. e3 {[%clk 0:02:54]}  Bf5 {[%clk 0:02:47]} 5. cxd5 {[%clk 0:02:53]}  cxd5 {[%clk 0:02:46]} 6. Qb3 {[%clk 0:02:54]}  Bc8 {[%clk 0:02:45]} 7. Bb5+ {[%clk 0:02:52]}  Nc6 {[%clk 0:02:44]} 8. Nf3 {[%clk 0:02:51]}  e6 {[%clk 0:02:44]} 9. Bxc6+ {[%clk 0:02:42]}  bxc6 {[%clk 0:02:45]} 10. Qa4 {[%clk 0:02:42]}  Bd7 {[%clk 0:02:44]} 11. Ne5 {[%clk 0:02:42]}  Qc7 {[%clk 0:02:42]} 12. Bd2 {[%clk 0:02:40]}  Bd6 {[%clk 0:02:34]} 13. Nxd7 {[%clk 0:02:39]}  Qxd7 {[%clk 0:02:27]} 14. Rc1 {[%clk 0:02:38]}  O-O {[%clk 0:02:26]} 15. Qa6 {[%clk 0:02:32]}  Rfb8 {[%clk 0:02:23]} 16. Na4 {[%clk 0:02:29]}  Ne4 {[%clk 0:01:59]} 17. Qxc6 {[%clk 0:02:21]}  Qe7 {[%clk 0:01:58]} 18. Qc2 {[%clk 0:02:19]}  Nxd2 {[%clk 0:01:44]} 19. Qxd2 {[%clk 0:02:17]}  Qb7 {[%clk 0:01:41]} 20. O-O {[%clk 0:02:14]}  Bb4 {[%clk 0:01:37]} 21. Qe2 {[%clk 0:02:10]}  g6 {[%clk 0:01:33]} 22. Rc2 {[%clk 0:02:08]}  a5 {[%clk 0:01:33]} 23. Rfc1 {[%clk 0:02:08]}  Bd6 {[%clk 0:01:31]} 24. g3 {[%clk 0:02:07]}  Qe7 {[%clk 0:01:29]} 25. b3 {[%clk 0:02:05]}  Ba3 {[%clk 0:01:28]} 26. Rc7 {[%clk 0:02:02]}  Qf6 {[%clk 0:01:23]} 27. R1c6 {[%clk 0:02:01]}  h5 {[%clk 0:01:14]} 28. h4 {[%clk 0:02:00]}  Bb4 {[%clk 0:01:11]} 29. Kg2 {[%clk 0:02:00]}  Re8 {[%clk 0:01:10]} 30. Qf3 {[%clk 0:01:53]}  Qxf3+ {[%clk 0:01:09]} 31. Kxf3 {[%clk 0:01:53]}  Re7 {[%clk 0:01:08]} 32. Rc8+ {[%clk 0:01:45]}  Rxc8 {[%clk 0:01:07]} 33. Rxc8+ {[%clk 0:01:45]}  Kg7 {[%clk 0:01:08]} 34. Ke2 {[%clk 0:01:45]}  Kf6 {[%clk 0:01:07]} 35. Nc5 {[%clk 0:01:24]}  Kf5 {[%clk 0:01:04]} 36. Nd3 {[%clk 0:01:23]}  Kg4 {[%clk 0:01:01]} 37. Ne5+ {[%clk 0:01:10]}  Kf5 {[%clk 0:00:59]} 38. f3 {[%clk 0:01:09]}  Bd6 {[%clk 0:00:57]} 39. g4+ {[%clk 0:00:58]}  hxg4 {[%clk 0:00:47]} 40. fxg4+ {[%clk 0:00:58]}  Kf6 {[%clk 0:00:38]} 41. Nf3 {[%clk 0:00:45]}  Bb4 {[%clk 0:00:27]} 42. Kd3 {[%clk 0:00:44]}  Kg7 {[%clk 0:00:26]} 43. g5 {[%clk 0:00:41]}  Bd6 {[%clk 0:00:25]} 44. e4 {[%clk 0:00:40]}  dxe4+ {[%clk 0:00:25]} 45. Kxe4 {[%clk 0:00:41]}  Bb4 {[%clk 0:00:26]} 46. Ne5 {[%clk 0:00:41]}  Bd6 {[%clk 0:00:25]} 47. Ng4 {[%clk 0:00:41]}  Rc7 {[%clk 0:00:21]} 48. Rxc7 {[%clk 0:00:33]}  Bxc7 {[%clk 0:00:21]} 49. Ne5 {[%clk 0:00:34]}  f5+ {[%clk 0:00:16]} 50. gxf6+ {[%clk 0:00:33]}  Kxf6 {[%clk 0:00:17]} 51. a3 {[%clk 0:00:23]}  Bd6 {[%clk 0:00:14]} 52. Nc4 {[%clk 0:00:23]}  Bc7 {[%clk 0:00:10]} 53. b4 {[%clk 0:00:23]}  axb4 {[%clk 0:00:08]} 54. axb4 {[%clk 0:00:24]}  Bg3 {[%clk 0:00:05]} 55. b5 {[%clk 0:00:21]}  Bxh4 {[%clk 0:00:01]} 56. b6 {[%clk 0:00:20]}  Bg3 {[%clk 0:00:01]} 57. Ne5 {[%clk 0:00:20]}  g5 {[%clk 0:00:02]} 58. b7 {[%clk 0:00:20]}  Bf4 {[%clk 0:00:00]} 59. b8=Q {[%clk 0:00:19]} 1-0


[Site "https://www.chess.com"]

[Event "Titled Tuesday Blitz July 4 Late 2023"]
[White "Droin, Augustin"]
[Black "Matinian, Nikita"]
[WhiteFideId "45105987"]
[BlackFideId "24129100"]
[WhiteElo "2528"]
[BlackElo "2690"]
[Result "0-1"]
[Round "4"]
[TimeControl "180+2"]
[Date "2023.07.04"]
[WhiteClock "0:00:10"]
[BlackClock "0:00:18"]
[Board "51"]

1. e4 {[%clk 0:02:54]}  c5 {[%clk 0:03:00]} 2. Nf3 {[%clk 0:02:45]}  e6 {[%clk 0:03:00]} 3. d4 {[%clk 0:02:42]}  cxd4 {[%clk 0:03:01]} 4. Nxd4 {[%clk 0:02:43]}  Nc6 {[%clk 0:03:01]} 5. Nc3 {[%clk 0:02:43]}  Qc7 {[%clk 0:03:02]} 6. Be3 {[%clk 0:02:43]}  a6 {[%clk 0:03:01]} 7. a3 {[%clk 0:02:43]}  Nf6 {[%clk 0:02:58]} 8. f4 {[%clk 0:02:43]}  d5 {[%clk 0:02:56]} 9. e5 {[%clk 0:02:43]}  Nd7 {[%clk 0:02:50]} 10. Be2 {[%clk 0:02:39]}  Bc5 {[%clk 0:02:42]} 11. Qd2 {[%clk 0:02:32]}  b5 {[%clk 0:02:36]} 12. Nxc6 {[%clk 0:02:00]}  Qxc6 {[%clk 0:02:34]} 13. Bf3 {[%clk 0:01:59]}  Bb7 {[%clk 0:02:32]} 14. Bxc5 {[%clk 0:01:59]}  Qxc5 {[%clk 0:02:22]} 15. Ne2 {[%clk 0:01:59]}  Rc8 {[%clk 0:02:22]} 16. Nd4 {[%clk 0:01:58]}  Nb6 {[%clk 0:02:21]} 17. b3 {[%clk 0:01:55]}  O-O {[%clk 0:02:20]} 18. O-O {[%clk 0:01:54]}  Rc7 {[%clk 0:01:57]} 19. Kh1 {[%clk 0:01:53]}  Bc8 {[%clk 0:01:30]} 20. Bg4 {[%clk 0:01:39]}  g6 {[%clk 0:01:15]} 21. f5 {[%clk 0:01:16]}  exf5 {[%clk 0:01:15]} 22. Bxf5 {[%clk 0:01:16]}  Qc3 {[%clk 0:01:07]} 23. Qxc3 {[%clk 0:01:07]}  Rxc3 {[%clk 0:01:07]} 24. Bd3 {[%clk 0:01:07]}  Nd7 {[%clk 0:00:57]} 25. e6 {[%clk 0:01:06]}  Ne5 {[%clk 0:00:58]} 26. exf7+ {[%clk 0:01:06]}  Rxf7 {[%clk 0:00:58]} 27. Rxf7 {[%clk 0:01:06]}  Kxf7 {[%clk 0:00:58]} 28. Rf1+ {[%clk 0:00:59]}  Kg7 {[%clk 0:00:56]} 29. Be2 {[%clk 0:01:00]}  h5 {[%clk 0:00:43]} 30. h3 {[%clk 0:00:59]}  h4 {[%clk 0:00:41]} 31. Kg1 {[%clk 0:00:59]}  g5 {[%clk 0:00:31]} 32. Kf2 {[%clk 0:00:55]}  Ng6 {[%clk 0:00:29]} 33. Re1 {[%clk 0:00:45]}  Nf4 {[%clk 0:00:29]} 34. Bf3 {[%clk 0:00:38]}  Kf6 {[%clk 0:00:26]} 35. Re8 {[%clk 0:00:35]}  Ne6 {[%clk 0:00:20]} 36. Nxe6 {[%clk 0:00:12]}  Rxc2+ {[%clk 0:00:20]} 37. Ke3 {[%clk 0:00:13]}  Bxe6 {[%clk 0:00:20]} 38. Ra8 {[%clk 0:00:14]}  Ke5 {[%clk 0:00:18]} 39. Rxa6 {[%clk 0:00:13]}  d4+ {[%clk 0:00:18]} 40. Kd3 {[%clk 0:00:10]}  Bf5+ {[%clk 0:00:18]} 0-1


[Site "https://www.chess.com"]

[Event "Titled Tuesday Blitz July 4 Late 2023"]
[White "Papasimakopoulos, Alexandros"]
[Black "Bilan, Danila"]
[WhiteFideId "4244125"]
[BlackFideId "24161918"]
[WhiteElo "2685"]
[BlackElo "2522"]
[Result "1-0"]
[Round "4"]
[TimeControl "180+2"]
[Date "2023.07.04"]
[WhiteClock "0:00:35"]
[BlackClock "0:00:01"]
[Board "53"]

1. d4 {[%clk 0:03:00]}  d5 {[%clk 0:02:59]} 2. c4 {[%clk 0:03:00]}  c6 {[%clk 0:02:58]} 3. cxd5 {[%clk 0:03:00]}  cxd5 {[%clk 0:02:59]} 4. Bf4 {[%clk 0:03:01]}  Nf6 {[%clk 0:02:59]} 5. Nc3 {[%clk 0:03:02]}  Nc6 {[%clk 0:02:57]} 6. e3 {[%clk 0:03:02]}  a6 {[%clk 0:02:53]} 7. Bd3 {[%clk 0:03:03]}  Bg4 {[%clk 0:02:52]} 8. Nge2 {[%clk 0:03:02]}  e6 {[%clk 0:02:49]} 9. O-O {[%clk 0:03:02]}  Bd6 {[%clk 0:02:48]} 10. f3 {[%clk 0:03:03]}  Bh5 {[%clk 0:02:47]} 11. Rc1 {[%clk 0:03:04]}  O-O {[%clk 0:02:43]} 12. Na4 {[%clk 0:02:59]}  Bg6 {[%clk 0:02:35]} 13. Nc5 {[%clk 0:02:58]}  Rb8 {[%clk 0:02:13]} 14. b3 {[%clk 0:02:55]}  Bxf4 {[%clk 0:01:57]} 15. Nxf4 {[%clk 0:02:53]}  Qa5 {[%clk 0:01:52]} 16. Qe2 {[%clk 0:02:37]}  Rfc8 {[%clk 0:01:45]} 17. Nxb7 {[%clk 0:02:18]}  Rxb7 {[%clk 0:01:04]} 18. Bxa6 {[%clk 0:02:18]}  Rbc7 {[%clk 0:00:56]} 19. Rc5 {[%clk 0:02:14]}  Qb6 {[%clk 0:00:46]} 20. Bxc8 {[%clk 0:02:14]}  Rxc8 {[%clk 0:00:45]} 21. Rfc1 {[%clk 0:02:15]}  Nd7 {[%clk 0:00:40]} 22. R5c3 {[%clk 0:02:14]}  Ndb8 {[%clk 0:00:29]} 23. a4 {[%clk 0:02:08]}  Re8 {[%clk 0:00:20]} 24. Qb5 {[%clk 0:02:07]}  Qxb5 {[%clk 0:00:15]} 25. axb5 {[%clk 0:02:08]}  Ne7 {[%clk 0:00:10]} 26. Rc7 {[%clk 0:02:06]}  h6 {[%clk 0:00:04]} 27. Nxg6 {[%clk 0:02:02]}  fxg6 {[%clk 0:00:04]} 28. Ra1 {[%clk 0:02:01]}  Kf7 {[%clk 0:00:03]} 29. Kf2 {[%clk 0:01:46]}  Rd8 {[%clk 0:00:02]} 30. Raa7 {[%clk 0:01:45]}  Re8 {[%clk 0:00:02]} 31. Rcb7 {[%clk 0:01:44]}  Kf6 {[%clk 0:00:01]} 32. Ra8 {[%clk 0:01:43]}  Rc8 {[%clk 0:00:01]} 33. Raxb8 {[%clk 0:01:41]}  Rc2+ {[%clk 0:00:02]} 34. Ke1 {[%clk 0:01:35]}  Nf5 {[%clk 0:00:03]} 35. Rf8+ {[%clk 0:01:19]}  Kg5 {[%clk 0:00:03]} 36. e4 {[%clk 0:01:00]}  Ne3 {[%clk 0:00:04]} 37. g3 {[%clk 0:00:46]}  Ng2+ {[%clk 0:00:04]} 38. Kf1 {[%clk 0:00:47]}  Ne3+ {[%clk 0:00:04]} 39. Kg1 {[%clk 0:00:47]}  Rg2+ {[%clk 0:00:04]} 40. Kh1 {[%clk 0:00:47]}  Rc2 {[%clk 0:00:03]} 41. h4+ {[%clk 0:00:47]}  Kh5 {[%clk 0:00:03]} 42. exd5 {[%clk 0:00:43]}  Rc1+ {[%clk 0:00:01]} 43. Kh2 {[%clk 0:00:43]}  Rc2+ {[%clk 0:00:02]} 44. Kg1 {[%clk 0:00:44]}  Rc1+ {[%clk 0:00:02]} 45. Kf2 {[%clk 0:00:44]}  Nxd5 {[%clk 0:00:02]} 46. Re8 {[%clk 0:00:37]}  Rc2+ {[%clk 0:00:02]} 47. Ke1 {[%clk 0:00:37]}  Ne3 {[%clk 0:00:02]} 48. Rxe6 {[%clk 0:00:38]}  Ng2+ {[%clk 0:00:03]} 49. Kd1 {[%clk 0:00:37]}  Rb2 {[%clk 0:00:03]} 50. Re2 {[%clk 0:00:35]}  Rb1+ {[%clk 0:00:02]} 51. Kc2 {[%clk 0:00:36]}  Ne1+ {[%clk 0:00:01]} 52. Kxb1 {[%clk 0:00:35]} 1-0


[Site "https://www.chess.com"]

[Event "Titled Tuesday Blitz July 4 Late 2023"]
[White "musclemonster12"]
[Black "Czopor, Maciej"]
[BlackFideId "21805431"]
[WhiteElo "2513"]
[BlackElo "2675"]
[Result "1-0"]
[Round "4"]
[TimeControl "180+2"]
[Date "2023.07.04"]
[WhiteClock "0:00:05"]
[BlackClock "0:00:06"]
[Board "57"]

1. c4 {[%clk 0:02:55]}  Nf6 {[%clk 0:02:59]} 2. Nc3 {[%clk 0:02:55]}  b6 {[%clk 0:03:00]} 3. e4 {[%clk 0:02:52]}  e5 {[%clk 0:03:01]} 4. Nf3 {[%clk 0:02:52]}  Nc6 {[%clk 0:02:59]} 5. d4 {[%clk 0:02:51]}  exd4 {[%clk 0:02:57]} 6. Nxd4 {[%clk 0:02:52]}  Bb4 {[%clk 0:02:56]} 7. Nxc6 {[%clk 0:01:51]}  dxc6 {[%clk 0:02:57]} 8. Qxd8+ {[%clk 0:01:50]}  Kxd8 {[%clk 0:02:58]} 9. Bd2 {[%clk 0:01:45]}  Ke7 {[%clk 0:02:51]} 10. O-O-O {[%clk 0:01:44]}  Rd8 {[%clk 0:02:46]} 11. f3 {[%clk 0:01:26]}  Be6 {[%clk 0:02:45]} 12. Be2 {[%clk 0:01:20]}  a5 {[%clk 0:02:28]} 13. Kc2 {[%clk 0:00:53]}  Bc5 {[%clk 0:02:23]} 14. Bg5 {[%clk 0:00:47]}  h6 {[%clk 0:02:21]} 15. Bh4 {[%clk 0:00:48]}  g5 {[%clk 0:02:22]} 16. Bg3 {[%clk 0:00:48]}  Rdc8 {[%clk 0:02:11]} 17. h4 {[%clk 0:00:47]}  Nh5 {[%clk 0:02:10]} 18. Bh2 {[%clk 0:00:40]}  gxh4 {[%clk 0:02:09]} 19. Be5 {[%clk 0:00:40]}  Bf2 {[%clk 0:01:50]} 20. Rd2 {[%clk 0:00:31]}  Ng3 {[%clk 0:01:43]} 21. Rh2 {[%clk 0:00:22]}  Nxe2 {[%clk 0:01:25]} 22. Rxe2 {[%clk 0:00:21]}  Bg3 {[%clk 0:01:24]} 23. Bxg3 {[%clk 0:00:21]}  hxg3 {[%clk 0:01:25]} 24. Rxh6 {[%clk 0:00:22]}  Bxc4 {[%clk 0:01:26]} 25. Re3 {[%clk 0:00:21]}  Be6 {[%clk 0:01:12]} 26. f4 {[%clk 0:00:21]}  Rh8 {[%clk 0:01:11]} 27. Rxh8 {[%clk 0:00:21]}  Rxh8 {[%clk 0:01:11]} 28. f5 {[%clk 0:00:21]}  Bc4 {[%clk 0:01:04]} 29. Rxg3 {[%clk 0:00:19]}  Kf6 {[%clk 0:01:03]} 30. Kd2 {[%clk 0:00:16]}  Rd8+ {[%clk 0:00:59]} 31. Ke3 {[%clk 0:00:15]}  Ke5 {[%clk 0:00:58]} 32. Rg7 {[%clk 0:00:09]}  Rd3+ {[%clk 0:00:53]} 33. Kf2 {[%clk 0:00:09]}  Rd2+ {[%clk 0:00:53]} 34. Kf3 {[%clk 0:00:09]}  Rxb2 {[%clk 0:00:52]} 35. Rg8 {[%clk 0:00:06]}  Kd4 {[%clk 0:00:49]} 36. Nd1 {[%clk 0:00:05]}  Be2+ {[%clk 0:00:49]} 37. Kf4 {[%clk 0:00:05]}  Bxd1 {[%clk 0:00:50]} 38. Rd8+ {[%clk 0:00:06]}  Kc4 {[%clk 0:00:39]} 39. Rxd1 {[%clk 0:00:07]}  Rxg2 {[%clk 0:00:40]} 40. Rd7 {[%clk 0:00:06]}  f6 {[%clk 0:00:31]} 41. Rxc7 {[%clk 0:00:06]}  c5 {[%clk 0:00:32]} 42. Rc6 {[%clk 0:00:07]}  Rf2+ {[%clk 0:00:22]} 43. Ke3 {[%clk 0:00:06]}  Rxa2 {[%clk 0:00:22]} 44. Rxb6 {[%clk 0:00:07]}  a4 {[%clk 0:00:20]} 45. Rxf6 {[%clk 0:00:07]}  a3 {[%clk 0:00:21]} 46. Ra6 {[%clk 0:00:07]}  Ra1 {[%clk 0:00:20]} 47. f6 {[%clk 0:00:07]}  a2 {[%clk 0:00:21]} 48. e5 {[%clk 0:00:02]}  Kd5 {[%clk 0:00:12]} 49. f7 {[%clk 0:00:01]}  Rf1 {[%clk 0:00:10]} 50. e6 {[%clk 0:00:01]}  a1=Q {[%clk 0:00:02]} 51. Rxa1 {[%clk 0:00:01]}  Rxa1 {[%clk 0:00:02]} 52. e7 {[%clk 0:00:02]}  Re1+ {[%clk 0:00:02]} 53. Kd2 {[%clk 0:00:02]}  Rxe7 {[%clk 0:00:02]} 54. f8=Q {[%clk 0:00:03]}  Re4 {[%clk 0:00:02]} 55. Qf7+ {[%clk 0:00:03]}  Kd4 {[%clk 0:00:02]} 56. Qg7+ {[%clk 0:00:03]}  Kd5 {[%clk 0:00:02]} 57. Qg8+ {[%clk 0:00:04]}  Kd4 {[%clk 0:00:03]} 58. Qd8+ {[%clk 0:00:04]}  Ke5 {[%clk 0:00:03]} 59. Qe8+ {[%clk 0:00:04]}  Kd5 {[%clk 0:00:04]} 60. Qd7+ {[%clk 0:00:04]}  Kc4 {[%clk 0:00:03]} 61. Qd3+ {[%clk 0:00:04]}  Kb4 {[%clk 0:00:04]} 62. Qxe4+ {[%clk 0:00:04]}  c4 {[%clk 0:00:05]} 63. Kc2 {[%clk 0:00:05]}  Kc5 {[%clk 0:00:05]} 64. Qe5+ {[%clk 0:00:06]}  Kc6 {[%clk 0:00:05]} 65. Kc3 {[%clk 0:00:06]}  Kb7 {[%clk 0:00:05]} 66. Kxc4 {[%clk 0:00:05]}  Kc8 {[%clk 0:00:06]} 1-0


[Site "https://www.chess.com"]

[Event "Titled Tuesday Blitz July 4 Late 2023"]
[White "Kavyev, Ruslan"]
[Black "Mazarini41"]
[WhiteFideId "34110981"]
[WhiteElo "2674"]
[BlackElo "2512"]
[Result "1-0"]
[Round "4"]
[TimeControl "180+2"]
[Date "2023.07.04"]
[WhiteClock "0:00:17"]
[BlackClock "0:00:00"]
[Board "58"]

1. d4 {[%clk 0:02:58]}  Nf6 {[%clk 0:02:57]} 2. c4 {[%clk 0:02:57]}  g6 {[%clk 0:02:56]} 3. Nc3 {[%clk 0:02:56]}  Bg7 {[%clk 0:02:57]} 4. e4 {[%clk 0:02:54]}  O-O {[%clk 0:02:56]} 5. Nf3 {[%clk 0:02:53]}  d6 {[%clk 0:02:57]} 6. Be2 {[%clk 0:02:52]}  e5 {[%clk 0:02:56]} 7. O-O {[%clk 0:02:51]}  Nc6 {[%clk 0:02:56]} 8. d5 {[%clk 0:02:50]}  Ne7 {[%clk 0:02:56]} 9. b4 {[%clk 0:02:51]}  a5 {[%clk 0:02:45]} 10. bxa5 {[%clk 0:02:47]}  Rxa5 {[%clk 0:02:43]} 11. a4 {[%clk 0:02:46]}  Nd7 {[%clk 0:02:42]} 12. Ba3 {[%clk 0:02:44]}  h6 {[%clk 0:02:36]} 13. Bb4 {[%clk 0:02:39]}  Ra8 {[%clk 0:02:35]} 14. a5 {[%clk 0:02:39]}  f5 {[%clk 0:02:34]} 15. Ne1 {[%clk 0:02:35]}  fxe4 {[%clk 0:02:26]} 16. Nxe4 {[%clk 0:02:34]}  Nf6 {[%clk 0:02:22]} 17. Bd3 {[%clk 0:02:31]}  Bf5 {[%clk 0:02:12]} 18. Qc2 {[%clk 0:02:17]}  Bxe4 {[%clk 0:02:09]} 19. Bxe4 {[%clk 0:02:17]}  Nxe4 {[%clk 0:02:09]} 20. Qxe4 {[%clk 0:02:17]}  Rf4 {[%clk 0:02:08]} 21. Qe2 {[%clk 0:02:15]}  Nf5 {[%clk 0:02:07]} 22. Nc2 {[%clk 0:01:56]}  Qg5 {[%clk 0:01:41]} 23. Kh1 {[%clk 0:01:52]}  Rf8 {[%clk 0:01:15]} 24. f3 {[%clk 0:01:47]}  Qh4 {[%clk 0:01:09]} 25. Be1 {[%clk 0:01:17]}  Qf6 {[%clk 0:01:04]} 26. Bd2 {[%clk 0:01:10]}  Rh4 {[%clk 0:00:53]} 27. Be1 {[%clk 0:01:05]}  Nd4 {[%clk 0:00:26]} 28. Nxd4 {[%clk 0:00:55]}  Rxd4 {[%clk 0:00:25]} 29. Bf2 {[%clk 0:00:53]}  Rf4 {[%clk 0:00:25]} 30. Be3 {[%clk 0:00:51]}  Rf5 {[%clk 0:00:20]} 31. a6 {[%clk 0:00:50]}  bxa6 {[%clk 0:00:20]} 32. Qd3 {[%clk 0:00:43]}  g5 {[%clk 0:00:16]} 33. h3 {[%clk 0:00:43]}  h5 {[%clk 0:00:17]} 34. Qe4 {[%clk 0:00:41]}  Qg6 {[%clk 0:00:15]} 35. Rxa6 {[%clk 0:00:39]}  g4 {[%clk 0:00:14]} 36. Ra7 {[%clk 0:00:31]}  gxf3 {[%clk 0:00:13]} 37. Rxf3 {[%clk 0:00:31]}  Qf7 {[%clk 0:00:02]} 38. Rxf5 {[%clk 0:00:29]}  Qxf5 {[%clk 0:00:02]} 39. Qxf5 {[%clk 0:00:30]}  Rxf5 {[%clk 0:00:02]} 40. Rxc7 {[%clk 0:00:31]}  Rf1+ {[%clk 0:00:02]} 41. Kh2 {[%clk 0:00:31]}  e4 {[%clk 0:00:02]} 42. Re7 {[%clk 0:00:26]}  Be5+ {[%clk 0:00:02]} 43. Rxe5 {[%clk 0:00:11]}  dxe5 {[%clk 0:00:03]} 44. c5 {[%clk 0:00:12]}  Kf8 {[%clk 0:00:02]} 45. c6 {[%clk 0:00:12]}  Ke7 {[%clk 0:00:02]} 46. Bc5+ {[%clk 0:00:12]}  Kd8 {[%clk 0:00:02]} 47. d6 {[%clk 0:00:13]}  Rd1 {[%clk 0:00:02]} 48. Bb6+ {[%clk 0:00:13]}  Kc8 {[%clk 0:00:02]} 49. d7+ {[%clk 0:00:14]}  Rxd7 {[%clk 0:00:03]} 50. cxd7+ {[%clk 0:00:15]}  Kxd7 {[%clk 0:00:02]} 51. Kg3 {[%clk 0:00:15]}  Kc6 {[%clk 0:00:02]} 52. Ba7 {[%clk 0:00:14]}  Kd5 {[%clk 0:00:03]} 53. Bb8 {[%clk 0:00:15]}  Kd4 {[%clk 0:00:03]} 54. Ba7+ {[%clk 0:00:15]}  Kd3 {[%clk 0:00:03]} 55. Kf2 {[%clk 0:00:16]}  Kd2 {[%clk 0:00:03]} 56. Be3+ {[%clk 0:00:15]}  Kd3 {[%clk 0:00:03]} 57. g4 {[%clk 0:00:15]}  hxg4 {[%clk 0:00:03]} 58. hxg4 {[%clk 0:00:16]}  Kc4 {[%clk 0:00:04]} 59. Bg5 {[%clk 0:00:15]}  Kd5 {[%clk 0:00:04]} 60. Ke3 {[%clk 0:00:16]}  Kd6 {[%clk 0:00:04]} 61. Kxe4 {[%clk 0:00:17]}  Ke6 {[%clk 0:00:00]} 62. Bh4 {[%clk 0:00:17]} 1-0


[Site "https://www.chess.com"]

[Event "Titled Tuesday Blitz July 4 Late 2023"]
[White "Katz, Alexander"]
[Black "Zeltsan, Joseph"]
[WhiteFideId "2039796"]
[BlackFideId "30932980"]
[WhiteElo "2663"]
[BlackElo "2507"]
[Result "1/2-1/2"]
[Round "4"]
[TimeControl "180+2"]
[Date "2023.07.04"]
[WhiteClock "0:00:07"]
[BlackClock "0:00:16"]
[Board "59"]

1. e4 {[%clk 0:03:00]}  c5 {[%clk 0:02:57]} 2. Nf3 {[%clk 0:03:00]}  d6 {[%clk 0:02:57]} 3. d4 {[%clk 0:03:00]}  cxd4 {[%clk 0:02:58]} 4. Nxd4 {[%clk 0:03:01]}  Nf6 {[%clk 0:02:59]} 5. Nc3 {[%clk 0:03:02]}  a6 {[%clk 0:02:59]} 6. Be3 {[%clk 0:03:02]}  e5 {[%clk 0:03:00]} 7. Nb3 {[%clk 0:03:03]}  Be6 {[%clk 0:02:58]} 8. f3 {[%clk 0:03:04]}  Be7 {[%clk 0:02:58]} 9. Qd2 {[%clk 0:03:04]}  Nbd7 {[%clk 0:02:58]} 10. O-O-O {[%clk 0:03:04]}  O-O {[%clk 0:02:59]} 11. g4 {[%clk 0:03:05]}  b5 {[%clk 0:03:00]} 12. g5 {[%clk 0:03:05]}  b4 {[%clk 0:03:00]} 13. Ne2 {[%clk 0:03:03]}  Ne8 {[%clk 0:02:58]} 14. f4 {[%clk 0:02:55]}  a5 {[%clk 0:02:57]} 15. f5 {[%clk 0:02:56]}  a4 {[%clk 0:02:55]} 16. fxe6 {[%clk 0:02:43]}  axb3 {[%clk 0:02:43]} 17. cxb3 {[%clk 0:02:38]}  fxe6 {[%clk 0:02:22]} 18. Kb1 {[%clk 0:02:37]}  Rxa2 {[%clk 0:02:15]} 19. Kxa2 {[%clk 0:02:01]}  Qa8+ {[%clk 0:02:15]} 20. Kb1 {[%clk 0:02:02]}  Qxe4+ {[%clk 0:02:15]} 21. Qc2 {[%clk 0:02:02]}  Qxh1 {[%clk 0:02:11]} 22. Bh3 {[%clk 0:02:01]}  Qf3 {[%clk 0:02:01]} 23. Bxe6+ {[%clk 0:01:58]}  Kh8 {[%clk 0:02:02]} 24. Bg1 {[%clk 0:01:01]}  Nc5 {[%clk 0:01:57]} 25. Bxc5 {[%clk 0:01:00]}  dxc5 {[%clk 0:01:57]} 26. Ng3 {[%clk 0:01:00]}  Nd6 {[%clk 0:01:20]} 27. Rf1 {[%clk 0:00:45]}  Qe3 {[%clk 0:01:17]} 28. Rxf8+ {[%clk 0:00:40]}  Bxf8 {[%clk 0:01:18]} 29. Nf5 {[%clk 0:00:39]}  Qxg5 {[%clk 0:01:10]} 30. Nxd6 {[%clk 0:00:29]}  Bxd6 {[%clk 0:01:11]} 31. Qd3 {[%clk 0:00:27]}  Qe7 {[%clk 0:01:04]} 32. Qd5 {[%clk 0:00:22]}  g6 {[%clk 0:01:03]} 33. h4 {[%clk 0:00:20]}  Kg7 {[%clk 0:01:01]} 34. h5 {[%clk 0:00:20]}  gxh5 {[%clk 0:00:38]} 35. Qg2+ {[%clk 0:00:20]}  Kh6 {[%clk 0:00:39]} 36. Bd5 {[%clk 0:00:20]}  Qg5 {[%clk 0:00:35]} 37. Qf1 {[%clk 0:00:20]}  Qf4 {[%clk 0:00:34]} 38. Qa6 {[%clk 0:00:20]}  Qf6 {[%clk 0:00:32]} 39. Qd3 {[%clk 0:00:18]}  Qg6 {[%clk 0:00:29]} 40. Be4 {[%clk 0:00:18]}  Qg1+ {[%clk 0:00:30]} 41. Ka2 {[%clk 0:00:19]}  Qd4 {[%clk 0:00:29]} 42. Qf3 {[%clk 0:00:19]}  Be7 {[%clk 0:00:20]} 43. Qf5 {[%clk 0:00:18]}  Qd6 {[%clk 0:00:18]} 44. Qxh7+ {[%clk 0:00:19]}  Kg5 {[%clk 0:00:18]} 45. Qf5+ {[%clk 0:00:19]}  Kh6 {[%clk 0:00:18]} 46. Qh7+ {[%clk 0:00:19]}  Kg5 {[%clk 0:00:18]} 47. Qf5+ {[%clk 0:00:10]}  Kh4 {[%clk 0:00:17]} 48. Qf2+ {[%clk 0:00:09]}  Kg4 {[%clk 0:00:17]} 49. Qf5+ {[%clk 0:00:06]}  Kg3 {[%clk 0:00:15]} 50. Qf3+ {[%clk 0:00:06]}  Kh4 {[%clk 0:00:16]} 51. Qf2+ {[%clk 0:00:07]}  Kg5 {[%clk 0:00:16]} 52. Qf5+ {[%clk 0:00:07]} 1/2-1/2


[Site "https://www.chess.com"]

[Event "Titled Tuesday Blitz July 4 Late 2023"]
[White "Aldokhin, Ivan"]
[Black "Zhang, Derek"]
[WhiteFideId "24115720"]
[BlackFideId "2087871"]
[WhiteElo "2660"]
[BlackElo "2504"]
[Result "1-0"]
[Round "4"]
[TimeControl "180+2"]
[Date "2023.07.04"]
[WhiteClock "0:00:03"]
[BlackClock "0:00:00"]
[Board "60"]

1. e4 {[%clk 0:03:00]}  e6 {[%clk 0:03:00]} 2. d4 {[%clk 0:03:00]}  d5 {[%clk 0:03:00]} 3. Nc3 {[%clk 0:03:01]}  Bb4 {[%clk 0:03:00]} 4. Ne2 {[%clk 0:03:01]}  dxe4 {[%clk 0:02:58]} 5. a3 {[%clk 0:02:58]}  Bxc3+ {[%clk 0:02:58]} 6. Nxc3 {[%clk 0:02:58]}  Nc6 {[%clk 0:02:59]} 7. Bb5 {[%clk 0:02:59]}  Ne7 {[%clk 0:02:56]} 8. Nxe4 {[%clk 0:02:47]}  O-O {[%clk 0:02:54]} 9. c3 {[%clk 0:02:26]}  e5 {[%clk 0:02:53]} 10. O-O {[%clk 0:01:57]}  exd4 {[%clk 0:02:52]} 11. Qc2 {[%clk 0:01:50]}  Bf5 {[%clk 0:02:39]} 12. Rd1 {[%clk 0:01:37]}  Qd5 {[%clk 0:02:33]} 13. Bd3 {[%clk 0:01:36]}  Rad8 {[%clk 0:02:02]} 14. c4 {[%clk 0:01:25]}  Qd7 {[%clk 0:01:45]} 15. Bf4 {[%clk 0:01:18]}  Bxe4 {[%clk 0:01:24]} 16. Bxe4 {[%clk 0:01:18]}  Ng6 {[%clk 0:01:24]} 17. Bg3 {[%clk 0:01:07]}  Kh8 {[%clk 0:01:02]} 18. Bf5 {[%clk 0:00:53]}  Qe7 {[%clk 0:00:51]} 19. Re1 {[%clk 0:00:48]}  Qg5 {[%clk 0:00:41]} 20. Bxc7 {[%clk 0:00:34]}  Rde8 {[%clk 0:00:36]} 21. Bd7 {[%clk 0:00:27]}  Rxe1+ {[%clk 0:00:30]} 22. Rxe1 {[%clk 0:00:27]}  Nf4 {[%clk 0:00:23]} 23. Qe4 {[%clk 0:00:19]}  Ne6 {[%clk 0:00:18]} 24. Bd6 {[%clk 0:00:11]}  Rd8 {[%clk 0:00:17]} 25. Bxe6 {[%clk 0:00:10]}  fxe6 {[%clk 0:00:17]} 26. Qxe6 {[%clk 0:00:10]}  h6 {[%clk 0:00:10]} 27. c5 {[%clk 0:00:10]}  d3 {[%clk 0:00:07]} 28. Qe3 {[%clk 0:00:10]}  Qg6 {[%clk 0:00:06]} 29. Rd1 {[%clk 0:00:08]}  Re8 {[%clk 0:00:03]} 30. Qg3 {[%clk 0:00:03]}  Qe4 {[%clk 0:00:02]} 31. h3 {[%clk 0:00:03]}  Nd4 {[%clk 0:00:00]} 32. Qxd3 {[%clk 0:00:03]} 1-0


[Site "https://www.chess.com"]